Workbook

Sheet Synthesis
A1: a1 | B1: 0 | C1: =+B1*D_R -> 0 | G1: 0 | H1: 0 | K1: =PI()/180 -> 0.01745329252 | AI1: k | AJ1: 10
A2: a2 | B2: 30 | C2: =+B2*D_R -> 0.5235987756 | D2: d2 | E2: =G2-$G$1 -> 20 | F2: =H2-$H$1 -> 0 | G2: 20 | H2: 0 | W2: uzunluk | X2: =G1 -> 0 | Y2: =H1 -> 0 | AA2: A0Pi | AJ2: =AJ3+$AJ$1*COS(C1) -> 10 | AK2: =AJ1*SIN(C1)+AK3 -> 0 | AM2: =AJ3 -> 0 | AN2: =AK3 -> 0
A3: a3 | B3: 50 | C3: =+B3*D_R -> 0.872664626 | D3: d3 | E3: =G3-$G$1 -> 40 | F3: =H3-$H$1 -> 0 | G3: 40 | H3: 0 | K3: c0 | L3: c1 | M3: c2 | N3: c3 | U3: =V3/D_R+360 -> 218.0822147 | V3: =ATAN2((X2-X4),(Y2-Y4)) -> -2.47693262 | W3: =Magnitude((X3-X2),(Y3-Y2)) -> 58.3567971 | X3: =N21 -> 43.48634434 | Y3: =O21 -> 38.91598159 | AA3: =mag((G1-$X$4),(H1-$Y$4)) -> 93.4471668 | AB3: =ATAN2((G1-$X$4),(H1-$Y$4)) -> -2.47693262 | AC3: =AB3/D_R -> -141.9177853 | AE3: =angcos(AA3,$W$4,$W$3) -> 0.1077678542 | AF3: =AE3/D_R -> 6.174643212 | AG3: =AC3-AF3 -> -148.0924285 | AI3: P1 | AJ3: 0 | AK3: 0 | AM3: =AM4+W4*COS(AG3*D_R) -> 43.48634434 | AN3: =AN4+W4*SIN(AG3*D_R) -> 38.91598159
A4: a4 | B4: 70 | C4: =+B4*D_R -> 1.221730476 | D4: d4 | E4: 60 | F4: 0 | G4: 60 | H4: 0 | K4: =Fivepos(E2:F2,E3:F3,E4:F4,E5:F5,C2,C3,C4,C5) -> 2.453214057e-16 | L4: -0.007494047474 | M4: 0.04719245164 | N4: 0.5568338766 | U4: =V4/D_R+360 -> 211.9075715 | V4: =ATAN2((X3-X4),(Y3-Y4)) -> -2.584700474 | W4: =Magnitude((X4-X3),(Y4-Y3)) -> 35.42034788 | X4: =P21 -> 73.55474312 | Y4: =Q21 -> 57.63742488 | AA4: =mag((G2-$X$4),(H2-$Y$4)) -> 78.67771767 | AB4: =ATAN2((G2-$X$4),(H2-$Y$4)) -> -2.319493627 | AC4: =AB4/D_R -> -132.8971954 | AE4: =angcos(AA4,$W$4,$W$3) -> 0.7601734447 | AF4: =AE4/D_R -> 43.55473008 | AG4: =AC4-AF4 -> -176.4519255 | AJ4: =$AJ$1*COS($C$1+PI()/2)+AJ3 -> 6.125742275e-16 | AK4: =$AJ$1*SIN($C$1+PI()/2)+AK3 -> 10 | AM4: =$X$4 -> 73.55474312 | AN4: =$Y$4 -> 57.63742488
A5: a5 | B5: 90 | C5: =+B5*D_R -> 1.570796327 | D5: d5 | E5: 80 | F5: 0 | G5: 80 | H5: 0 | K5: t1 | L5: t2 | M5: t3 | N5: t4 | W5: =Magnitude((X4-X2),(Y4-Y2)) -> 93.4471668 | AA5: =mag((G3-$X$4),(H3-$Y$4)) -> 66.69327952 | AB5: -2.098001883 | AC5: =AB5/D_R -> -120.2066533 | AE5: 1.063065507 | AF5: =AE5/D_R -> 60.9091669 | AG5: -181.1158202
K6: =quartic(1,N4,M4,L4,K4) -> 0.0776758193 | L6: 3.27862737e-14 | M6: -0.2526628483 | N6: -0.3818468476 | AA6: 59.20982864 | AB6: -1.801771849 | AC6: =AB6/D_R -> -103.2339226 | AE6: 1.241879304 | AF6: =AE6/D_R -> 71.15444281 | AG6: -174.3883654 | AJ6: =AJ7+AJ1*COS(C2+PI()/2) -> 15 | AK6: =$AJ$1*SIN(C2+PI()/2)+AK7 -> 8.660254038 | AM6: =AJ7 -> 20 | AN6: =AK7 -> 0
B7: Closed Form Solution of the problem given in Figure 5.2 | U7: =V7/D_R+360 -> 227.1028046 | V7: =ATAN2((X7-X9),(Y7-Y9)) -> -2.319493627 | X7: =G2 -> 20 | Y7: =H2 -> 0 | AA7: 57.99667303 | AB7: -1.459434803 | AC7: =AB7/D_R -> -83.6194547 | AE7: 1.271166418 | AF7: =AE7/D_R -> 72.83247082 | AG7: -156.4519255 | AI7: P2 | AJ7: =G2 -> 20 | AK7: =H2 -> 0 | AM7: =AM8+W4*COS(AB4-AE4) -> 38.20228812 | AN7: =AN8+W4*SIN(AB4-AE4) -> 55.44540084 | AO7: b2 | AP7: =AG4-AG3 -> -28.35949704
U8: =V8/D_R -> 43.55473008 | V8: =angcos(W8,W4,W3) -> 0.7601734447 | W8: =Magnitude((X9-X7),(Y9-Y7)) -> 78.67771767 | X8: =X9+W4*COS(V7-V8+2*PI()) -> 38.20228812 | Y8: =Y9+W4*SIN(V7-V8+2*PI()) -> 55.44540084 | AJ8: =$AJ$1*COS($C$2)+AJ7 -> 28.66025404 | AK8: =AK7+AJ1*SIN(C2) -> 5 | AM8: =AM4 -> 73.55474312 | AN8: =AN4 -> 57.63742488
K9: b41 | L9: b42 | N9: -Z | P9: R | U9: b2= | V9: =U7-U8+(360-U4) -> 331.640503 | X9: =X4 -> 73.55474312 | Y9: =Y4 -> 57.63742488
H10: b21 | I10: =ATAN2((1-K6^2),2*K6) -> 0.1550403251 | K10: =Burmester($E$2:$F$2,$E$3:$F$3,$E$4:$F$4,$C$2,$C$3,$C$4,I10) -> 0.3982068698 | L10: 6.074855062 | N10: =ThreePosition_Basic2(C2,C4,E2:F2,E4:F4,I10,K10) -> -2.343102423 | O10: -33.7976472 | P10: -5.342394078 | Q10: 207.4193562 | AJ10: =AJ11+AJ1*COS(C3+PI()/2) -> 32.33955557 | AK10: =AK11+AJ1*SIN(C3+PI()/2) -> 6.427876097 | AM10: =AJ11 -> 40 | AN10: =AK11 -> 0
I11: =I10/D_R -> 8.883156281 | K11: =K10/D_R -> 22.81557301 | N11: =ThreePosition_Basic2(C2,C4,E2:F2,E4:F4,I10,L10) -> 21.92181335 | O11: 43.35005248 | P11: -13.55474312 | Q11: 16.2391637 | X11: =G3 -> 40 | Y11: =H3 -> 0 | AI11: P3 | AJ11: =G3 -> 40 | AK11: =H3 -> 0 | AM11: =AM12+W4*COS(AG5/D_R) -> 42.3283604 | AN11: =AN12+W4*SIN(AG5/D_R) -> 74.35609905 | AO11: b3 | AP11: =AG5-AG3 -> -33.02339173
N12: =CRotate_Trans($G$1:$H$1,N10:O10,$C$1) -> -2.343102423 | O12: -33.7976472 | P12: =CRotate_Trans($G$1:$H$1,P10:Q10,$C$1) -> -5.342394078 | Q12: 207.4193562 | AJ12: =$AJ$1*COS($C$3)+AJ11 -> 46.4278761 | AK12: =AK11+AJ1*SIN(C3) -> 7.660444431 | AM12: =AM8 -> 73.55474312 | AN12: =AN8 -> 57.63742488
N13: =CRotate_Trans($G$1:$H$1,N11:O11,$C$1) -> 21.92181335 | O13: 43.35005248 | P13: =CRotate_Trans($G$1:$H$1,P11:Q11,$C$1) -> -13.55474312 | Q13: 16.2391637 | X13: =X4 -> 73.55474312 | AJ13: =AJ14+$AJ$1*COS($C$4+PI()/2) -> 50.60307379 | AK13: =AK14+$AJ$1*SIN($C$4+PI()/2) -> 3.420201433 | AM13: =AJ14 -> 60 | AN13: =AK14 -> 0
AI14: P+ | AJ14: =G4 -> 60 | AK14: =H4 -> 0 | AM14: =AM15+W4*COS(AB6-AE6) -> 38.30414499 | AN14: =AN15+W4*SIN(AB6-AE6) -> 54.17384649 | AO14: b4 | AP14: =AG6-AG3 -> -26.29593691
F15: =I15*180/PI() -> 3.757030217e-12 | H15: b22 | I15: =ATAN2((1-L6^2),2*L6) -> 6.557254739e-14 | K15: =Burmester($E$2:$F$2,$E$3:$F$3,$E$4:$F$4,$C$2,$C$3,$C$4,I15) -> 1.952119245e-13 | L15: 6.067218483 | N15: =ThreePosition_Basic2(C2,C4,E2:F2,E4:F4,I15,K15) -> 0.3221854723 | O15: -0.6841664508 | P15: -3.545104411e+12 | Q15: 3.093814111e+14 | AJ15: =$AJ$1*COS($C$4)+AJ14 -> 63.42020143 | AK15: =AK14+$AJ$1*SIN($C$4) -> 9.396926208 | AM15: =AM12 -> 73.55474312 | AN15: =AN12 -> 57.63742488
I16: =I15/D_R -> 3.757030217e-12 | L16: =L15/D_R -> 347.6260124 | N16: =ThreePosition_Basic2(C2,C4,E2:F2,E4:F4,I15,L15) -> 10 | O16: 37.32050808 | P16: -50.74410406 | Q16: -54.89717131
L17: =L16-360 -> -12.37398755 | N17: =CRotate_Trans($G$1:$H$1,N15:O15,$C$1) -> 0.3221854723 | O17: -0.6841664508 | P17: =CRotate_Trans($G$1:$H$1,P15:Q15,$C$1) -> -3.545104411e+12 | Q17: 3.093814111e+14 | AJ17: =AJ18+$AJ$1*COS($C$5+PI()/2) -> 70 | AK17: =AK18+$AJ$1*SIN($C$5+PI()/2) -> 1.225148455e-15 | AM17: =AJ18 -> 80 | AN17: =AK18 -> 0
N18: =CRotate_Trans($G$1:$H$1,N16:O16,$C$1) -> 10 | O18: 37.32050808 | P18: =CRotate_Trans($G$1:$H$1,P16:Q16,$C$1) -> -50.74410406 | Q18: -54.89717131 | AI18: P5 | AJ18: =E5 -> 80 | AK18: =F5 -> 0 | AM18: =AM19+W4*COS(AB7-AE7) -> 41.08401841 | AN18: =AN19+W4*SIN(AB7-AE7) -> 43.48634434 | AO18: b5 | AP18: =AG7-AG3 -> -8.359497037
E19: =360+F19 -> 331.640503 | F19: =I19*180/PI() -> -28.35949704 | H19: b23 | I19: =ATAN2((1-M6^2),2*M6) -> -0.4949665975 | K19: =Burmester($E$2:$F$2,$E$3:$F$3,$E$4:$F$4,$C$2,$C$3,$C$4,I19) -> 5.824234628 | L19: 5.217697513 | N19: =ThreePosition_Basic2(C2,C4,E2:F2,E4:F4,I19,K19) -> 43.48634434 | O19: 38.91598159 | P19: 73.55474312 | Q19: 57.63742488 | AJ19: =$AJ$1*COS($C$5)+AJ18 -> 80 | AK19: =AK18+$AJ$1*SIN($C$5) -> 10 | AM19: =AM15 -> 73.55474312 | AN19: =AN15 -> 57.63742488
I20: =I19/D_R -> -28.35949704 | K20: =K19/D_R -> 333.7040631 | L20: =L19/D_R -> 298.9520463 | N20: =ThreePosition_Basic2(C2,C4,E2:F2,E4:F4,I19,L19) -> 31.70674653 | O20: 10.89635594 | P20: 65.34239408 | Q20: -2.297532885
I21: =360+I20 -> 331.640503 | K21: =K20-360 -> -26.29593691 | N21: =CRotate_Trans($G$1:$H$1,N19:O19,$C$1) -> 43.48634434 | O21: 38.91598159 | P21: =CRotate_Trans($G$1:$H$1,P19:Q19,$C$1) -> 73.55474312 | Q21: 57.63742488
N22: =CRotate_Trans($G$1:$H$1,N20:O20,$C$1) -> 31.70674653 | O22: 10.89635594 | P22: =CRotate_Trans($G$1:$H$1,P20:Q20,$C$1) -> 65.34239408 | Q22: -2.297532885
E23: =360+F23 -> 318.2016021 | F23: =I23*180/PI() -> -41.79839787 | H23: b24 | I23: =ATAN2((1-N6^2),2*N6) -> -0.729519665 | K23: =Burmester($E$2:$F$2,$E$3:$F$3,$E$4:$F$4,$C$2,$C$3,$C$4,I23) -> 5.767165947 | L23: 4.681200831 | N23: =ThreePosition_Basic2(C2,C4,E2:F2,E4:F4,I23,K23) -> 39.65611415 | O23: 42.02024681 | P23: 55.08635858 | Q23: 57.39899621 | X23: 0 | Y23: 2
I24: =I23/D_R -> -41.79839787 | N24: =ThreePosition_Basic2(C2,C4,E2:F2,E4:F4,I23,L23) -> 29.80396138 | O24: 17.20732513 | P24: 50 | Q24: 13.81148997 | X24: =N13 -> 21.92181335 | Y24: =O13 -> 43.35005248
I25: =360+I24 -> 318.2016021 | N25: =CRotate_Trans($G$1:$H$1,N23:O23,$C$1) -> 39.65611415 | O25: 42.02024681 | P25: =CRotate_Trans($G$1:$H$1,P23:Q23,$C$1) -> 55.08635858 | Q25: 57.39899621 | X25: =P13 -> -13.55474312 | Y25: =Q13 -> 16.2391637
N26: =CRotate_Trans($G$1:$H$1,N24:O24,$C$1) -> 29.80396138 | O26: 17.20732513 | P26: =CRotate_Trans($G$1:$H$1,P24:Q24,$C$1) -> 50 | Q26: 13.81148997
I28: =I10*180/PI() -> 8.883156281
I29: =I15*180/PI() -> 3.757030217e-12
